bitfinex/quotes_SOLUSD_20240826
["timestamp","ask_amount","ask_price","bid_price","bid_amount"]
[1724637321594,1.57714365,158.54,158.49,6.3091]
[1724637324759,1.57714365,158.54,158.5,6.3091]
[1724637325313,38.4096197,158.59,158.51,6.3086]
[1724637325476,20.0,158.58,158.51,6.3086]
[1724637325792,6.3067,158.57,158.51,6.3086]
[1724637325989,6.3069,158.56,158.51,6.3086]
[1724637326295,7.88393692,158.56,158.5,6.3091]
[1724637327065,6.3069,158.56,158.51,6.3087]
[1724637327689,1.57696222,158.55,158.51,6.3087]
[1724637328097,1.57696222,158.55,158.5,6.309]
[1724637329099,1.57696222,158.55,158.48,75.6091197]
[1724637329420,12.5736,158.59,158.5,30.6091197]
[1724637329597,6.3061,158.58,158.52,6.3083]
[1724637330310,7.88329636,158.57,158.52,6.3083]
[1724637330482,7.88329636,158.57,158.51,6.3086]
[1724637331111,1.57679636,158.57,158.48,75.6091197]
[1724637331279,1.57679636,158.57,158.5,6.3091]
[1724637332603,6.3071,158.55,158.5,6.3091]
[1724637332831,1.57703663,158.54,158.5,6.3091]
[1724637333307,1.57703663,158.54,158.48,51.3097]
[1724637333308,7.88463663,158.54,158.48,51.3097]
[1724637333890,7.88463663,158.54,158.49,6.3094]
[1724637336785,7.88463663,158.54,158.48,51.3098]
[1724637338614,1.57703663,158.54,158.46,6.3103]
[1724637338794,6.3091,158.5,158.45,15.7489]
[1724637339033,1.57753017,158.49,158.44,6.3111]
[1724637339205,1.57757158,158.52,158.44,6.3111]
[1724637339521,1.57757158,158.51,158.44,6.3111]
[1724637339889,6.3092,158.5,158.44,6.3111]
[1724637340129,14.52526862,158.53,158.41,47.2579197]
[1724637340291,12.9477,158.53,158.47,6.31]
[1724637340492,12.9477,158.53,158.48,1.26179181]
[1724637340693,12.9477,158.53,158.47,6.31]
[1724637341795,12.9477,158.53,158.48,1.26180547]
[1724637343605,12.9477,158.53,158.47,6.31]
[1724637343821,6.6394,158.53,158.45,30.6091197]
[1724637343993,6.3074,158.55,158.47,45.7524197]
[1724637344318,8.1266,158.57,158.47,45.7524197]
[1724637344319,1.57703969,158.54,158.48,6.3096]
[1724637344697,1.57703969,158.54,158.47,15.1433]
[1724637344698,6.3083,158.52,158.47,15.1433]
[1724637345126,6.3079,158.53,158.47,21.4534]
[1724637346313,6.3076,158.54,158.48,6.3096]
[1724637346824,6.3076,158.54,158.49,6.3095]
[1724637348226,7.88471184,158.54,158.49,6.3095]
[1724637348427,6.3076,158.54,158.49,6.3095]
[1724637348602,7.88470906,158.54,158.49,6.3095]
[1724637349509,6.308,158.53,158.47,21.4533]
[1724637349722,6.308,158.53,158.47,15.1433]
[1724637350525,6.308,158.53,158.48,6.3098]
[1724637350729,6.3076,158.54,158.49,6.3095]
[1724637351223,1.5770521,158.53,158.49,6.3095]
[1724637351515,7.88483944,158.54,158.49,6.3095]
[1724637352114,7.88483944,158.54,158.48,6.3098]
[1724637352328,7.88483757,158.54,158.48,6.3098]
[1724637353337,6.3076,158.54,158.48,6.3098]
[1724637353641,6.3079,158.53,158.48,6.3098]
[1724637353824,6.3079,158.53,158.42,28.31182137]
[1724637353825,1.57735842,158.52,158.42,28.31182137]
[1724637354138,12.24372137,158.53,158.42,28.31182137]
[1724637354139,1.57744773,158.51,158.43,45.0]
[1724637354843,13.8211691,158.51,158.42,16.0681]
[1724637355137,18.63452137,158.51,158.42,16.0681]
[1724637355358,12.24372137,158.49,158.43,6.3118]
[1724637355513,1.5777706,158.48,158.43,6.3118]
[1724637355714,6.3103,158.47,158.42,16.0681]
[1724637356714,7.8876706,158.48,158.43,6.3119]
[1724637357642,6.3096,158.49,158.44,6.3115]
[1724637360429,20.16732137,158.51,158.42,16.0681]
[1724637360430,14.2327,158.51,158.43,12.24372137]
[1724637360636,14.2327,158.51,158.45,6.3107]
[1724637360932,12.6999,158.51,158.45,6.3107]
[1724637361455,6.3079,158.53,158.45,12.24372137]
[1724637361635,6.3079,158.53,158.46,45.0]
[1724637361952,1.57727403,158.52,158.46,45.0]
[1724637362133,6.3079,158.53,158.47,6.3102]
[1724637363043,1.57723715,158.52,158.47,6.3102]
[1724637363551,6.3079,158.53,158.47,6.3102]
[1724637364153,1.57724481,158.52,158.47,6.3102]
[1724637364455,7.88554481,158.52,158.47,6.3102]
[1724637364832,6.3079,158.53,158.47,6.3102]
[1724637365330,19.90412137,158.55,158.5,6.309]
[1724637365331,12.4348,158.55,158.5,6.309]
[1724637365637,21.80611218,158.59,158.49,12.24372137]
[1724637365857,6.3064,158.57,158.51,6.3087]
[1724637366057,1.57693637,158.56,158.48,61.5442]
[1724637366246,6.3086,158.52,158.47,6.3102]
[1724637366425,1.5772903,158.54,158.43,16.5442]
[1724637366629,1.5772903,158.54,158.44,20.0]
[1724637367241,12.7596,158.55,158.49,6.3094]
[1724637367852,6.4525,158.55,158.5,6.3088]
[1724637368162,7.9853,158.59,158.5,16.5442]
[1724637368335,7.9853,158.59,158.51,45.0]
[1724637368764,6.3062,158.58,158.52,6.3083]
[1724637369143,7.88296397,158.58,158.52,6.3083]
[1724637369967,7.72376364,158.63,158.51,75.59946902]
[1724637370141,6.3047,158.61,158.52,20.0]
[1724637370335,6.3047,158.61,158.55,6.3068]
[1724637371066,1.57648323,158.6,158.55,6.3068]
[1724637372149,7.88158323,158.6,158.54,6.3075]
[1724637372348,6.3055,158.59,158.54,6.3075]
[1724637373234,7.88266444,158.58,158.52,20.0]
[1724637373442,1.57675487,158.57,158.52,20.0]
[1724637373945,1.57675487,158.57,158.51,45.0]
[1724637374340,1.57675487,158.57,158.53,6.3079]
[1724637376065,21.57663642,158.62,158.55,6.3071]
[1724637376246,6.3053,158.6,158.54,6.3074]
[1724637377267,7.88214113,158.59,158.54,6.3074]
[1724637377841,7.88214113,158.59,158.53,6.3079]
[1724637378368,1.57675687,158.58,158.53,6.3079]
[1724637378664,6.3056,158.59,158.54,7.56869588]
[1724637379153,6.3056,158.59,158.54,6.3074]
[1724637380262,6.3056,158.59,158.53,6.3078]
[1724637380873,7.88264472,158.58,158.53,6.3078]
[1724637386768,6.3054,158.6,158.54,6.3071]
[1724637387274,1.57654749,158.59,158.54,6.3071]
[1724637387693,7.88214749,158.59,158.54,6.3071]
[1724637391852,6.3056,158.59,158.54,6.3071]
[1724637392979,6.147,158.63,158.55,1.26131782]
[1724637393665,6.3046,158.62,158.57,6.3062]
[1724637394293,6.3052,158.6,158.55,6.307]
[1724637394496,1.5765687,158.59,158.55,6.307]
[1724637395563,6.3052,158.6,158.55,6.307]
[1724637395884,1.57653151,158.59,158.55,6.307]
[1724637397860,6.3048,158.61,158.56,6.3067]
[1724637398273,6.3043,158.62,158.57,6.3063]
[1724637398655,1.57638482,158.61,158.57,6.3063]
[1724637400791,7.88108482,158.61,158.56,6.3066]
[1724637400960,6.3047,158.61,158.56,6.3066]
[1724637401163,6.3047,158.61,158.54,12.23496669]
[1724637401164,7.88158425,158.6,158.55,6.3071]
[1724637402768,6.3047,158.62,158.54,12.23496669]
[1724637402963,6.3047,158.62,158.57,6.306]
[1724637403391,7.88097835,158.62,158.57,6.306]
[1724637404061,6.3049,158.61,158.56,6.3065]
[1724637404265,1.57651212,158.6,158.56,6.3065]
[1724637404791,7.88171212,158.6,158.52,12.23496669]
[1724637404961,7.88171212,158.6,158.53,65.0]
[1724637405161,1.57651206,158.59,158.53,65.0]
[1724637407695,6.3052,158.6,158.53,65.0]
[1724637407879,7.88170779,158.6,158.53,65.0]
[1724637408894,6.3052,158.6,158.53,65.0]
[1724637409201,7.88170704,158.6,158.53,65.0]
[1724637409992,7.8821068,158.59,158.54,6.3075]
[1724637413601,7.8821068,158.59,158.5,28.77916669]
[1724637413602,6.3064,158.57,158.52,6.3083]
[1724637413896,6.308,158.53,158.48,6.3098]
[1724637414066,1.57724253,158.52,158.48,6.3098]
[1724637414994,1.57724531,158.53,158.48,6.3098]
[1724637416275,26.49440621,158.54,158.48,6.3098]
[1724637416870,6.308,158.53,158.48,6.3098]
[1724637423999,6.3747,158.54,158.47,12.23496669]
[1724637424185,6.3747,158.54,158.48,45.0]
[1724637425484,6.3747,158.54,158.5,6.309]
[1724637426601,6.3747,158.54,158.49,6.3094]
[1724637426602,26.49429686,158.54,158.49,6.3094]
[1724637429105,6.3079,158.53,158.49,6.3094]
[1724637429300,6.3079,158.53,158.46,16.6178]
[1724637429301,6.3085,158.52,158.46,16.6178]
[1724637429506,1.57733127,158.51,158.42,16.5126]
[1724637429816,12.23496669,158.48,158.38,16.5126]
[1724637430115,1.57778751,158.47,158.42,6.3122]
[1724637430275,1.57778751,158.47,158.38,28.74756669]
[1724637430603,1.57778751,158.47,158.34,12.23496669]
[1724637430604,12.23496669,158.44,158.34,12.23496669]
[1724637430814,1.5781366,158.43,158.34,28.74756669]
[1724637431606,1.5781366,158.43,158.38,6.3135]
[1724637431969,1.5781366,158.43,158.39,6.3134]
[1724637433891,6.3111,158.45,158.4,1.26256467]
[1724637434095,6.3111,158.45,158.4,7.57566467]
[1724637434291,1.5780971,158.44,158.4,6.3131]
[1724637435008,1.5780971,158.44,158.38,6.3135]
[1724637435185,1.5780971,158.44,158.39,6.3134]
[1724637437106,6.3111,158.45,158.4,7.57553402]
[1724637437310,6.3111,158.45,158.41,1.2624302]
[1724637437501,6.3111,158.45,158.39,6.3134]
[1724637437502,1.57801926,158.44,158.39,6.3134]
[1724637437895,7.88924811,158.45,158.39,6.3134]
[1724637438506,7.88924811,158.45,158.4,6.3131]
[1724637438680,6.3111,158.45,158.4,6.3131]
[1724637438881,1.57814679,158.46,158.38,12.23496669]
[1724637439104,1.57786869,158.45,158.39,20.0]
[1724637439308,20.12433538,158.45,158.39,6.3134]
[1724637439514,20.12433538,158.45,158.4,6.3131]
[1724637440085,7.88936869,158.45,158.4,6.3131]
[1724637445092,6.3107,158.46,158.41,7.57521712]
[1724637445284,1.57797878,158.45,158.4,6.3128]
[1724637446595,7.88907878,158.45,158.4,6.3128]
[1724637447111,6.3111,158.45,158.4,6.3128]
[1724637447319,7.88884726,158.46,158.41,6.3127]
[1724637448002,1.57794809,158.48,158.42,6.3121]
[1724637448204,1.57794809,158.48,158.4,12.23496669]
[1724637448400,6.1152,158.49,158.42,12.23496669]
[1724637448912,6.1152,158.49,158.46,6.3106]
[1724637449093,6.3088,158.51,158.46,6.3106]
[1724637449293,1.57750243,158.51,158.47,6.3102]
[1724637450691,1.57750243,158.51,158.46,6.3107]
[1724637451800,7.88640243,158.51,158.45,6.3111]
[1724637452001,6.3094,158.5,158.42,12.23496669]
[1724637452214,7.88715807,158.49,158.44,6.3111]
[1724637452519,1.57771438,158.48,158.44,6.3111]
[1724637453318,1.57771438,158.48,158.42,6.3119]
[1724637453725,1.57771438,158.48,158.43,6.3118]
[1724637457724,7.88771438,158.48,158.43,6.3118]
[1724637458221,6.31,158.48,158.43,6.3118]
[1724637458996,1.57780475,158.47,158.43,6.3118]
[1724637460018,6.3107,158.46,158.41,6.3123]
[1724637460228,1.57803699,158.45,158.41,6.3123]
[1724637460429,7.88913699,158.45,158.4,6.313]
[1724637460899,1.57803699,158.45,158.41,6.3126]
[1724637463304,6.3115,158.44,158.39,6.3134]
[1724637463515,1.57814867,158.43,158.39,6.3134]
[1724637463827,7.89034867,158.43,158.35,12.23496669]
[1724637464018,6.3122,158.43,158.36,65.0]
[1724637464220,6.3116,158.44,158.38,6.3135]
[1724637464407,1.57820561,158.43,158.38,6.3135]
[1724637464730,7.89010561,158.43,158.38,6.3135]
[1724637464901,1.57829602,158.42,158.38,6.3135]
[1724637465110,7.89089602,158.42,158.36,26.3143]
[1724637465301,1.57829602,158.42,158.36,6.3143]
[1724637465504,1.57829602,158.42,158.37,6.3142]
[1724637467125,6.3127,158.41,158.36,6.3146]
[1724637467314,1.57851375,158.4,158.35,6.315]
[1724637470334,7.89161375,158.4,158.35,6.315]
[1724637471438,6.3131,158.4,158.35,6.315]
[1724637472141,12.7145,158.41,158.35,6.315]
[1724637473255,1.57861257,158.4,158.36,6.3147]
[1724637473750,12.7145,158.41,158.36,6.3147]
[1724637474818,1.57861257,158.4,158.36,6.3147]
[1724637475322,12.7145,158.41,158.36,6.3147]
[1724637477046,12.7145,158.41,158.31,12.23496669]
[1724637477347,12.7145,158.41,158.32,65.0]
[1724637477545,6.4017,158.41,158.33,13.49787181]
[1724637477733,6.4017,158.41,158.34,65.0]
[1724637477929,6.4017,158.41,158.35,13.49770981]
[1724637478152,1.5328,158.47,158.37,12.23496669]
[1724637478324,29.38627342,158.47,158.39,12.23496669]
[1724637478953,35.69697342,158.47,158.39,12.23496669]
[1724637480855,9.38627342,158.47,158.39,12.23496669]
[1724637481157,1.57783591,158.46,158.39,12.23496669]
[1724637481456,7.88863591,158.46,158.39,12.23496669]
[1724637481631,1.5780351,158.45,158.39,12.23496669]
[1724637482652,1.57803486,158.46,158.39,12.23496669]
[1724637483943,1.57803486,158.46,158.37,12.23496669]
[1724637484254,1.57803486,158.46,158.38,65.0]
[1724637487255,1.57803486,158.46,158.39,12.23496669]
[1724637487461,6.2754,158.47,158.39,12.23496669]
[1724637487751,7.85336032,158.47,158.39,12.23496669]
[1724637489038,6.2754,158.47,158.41,12.23496669]
[1724637489358,6.2754,158.47,158.42,1.26221804]
[1724637489835,1.5328,158.5,158.42,1.26221804]
[1724637489836,3.1105702,158.5,158.43,12.23496669]
[1724637490837,9.4196702,158.5,158.43,12.23496669]
[1724637491032,9.4196702,158.5,158.38,65.0]
[1724637491033,6.3101,158.48,158.41,12.23496669]
[1724637491234,1.57786592,158.47,158.39,12.23496669]
[1724637491429,1.57786592,158.47,158.4,20.0]
[1724637492556,7.88791962,158.48,158.4,20.0]
[1724637496370,1.5328,158.5,158.43,12.23496669]
[1724637497953,1.57760468,158.49,158.43,12.23496669]
[1724637498448,1.5328,158.5,158.43,12.23496669]
[1724637499140,1.57760269,158.49,158.43,12.23496669]
[1724637501139,7.88720269,158.49,158.43,12.23496669]
[1724637501338,7.88750631,158.48,158.41,12.23496669]
[1724637501839,1.57760631,158.48,158.41,12.23496669]
[1724637502263,7.88750631,158.48,158.41,12.23496669]
[1724637507257,1.57784379,158.47,158.4,20.0]
[1724637507461,6.3111,158.46,158.38,12.23496669]
[1724637507656,7.88913378,158.45,158.39,20.0]
[1724637507977,1.57803349,158.44,158.39,20.0]
[1724637508163,1.57803349,158.44,158.36,15.0281]
[1724637508546,6.3119,158.43,158.36,15.0281]
[1724637509679,1.57823375,158.42,158.37,20.0]
[1724637510176,7.89013316,158.43,158.37,20.0]
[1724637511160,6.3119,158.43,158.37,20.0]
[1724637511466,1.57823282,158.42,158.37,20.0]
[1724637512453,7.890134,158.43,158.37,20.0]
[1724637513374,6.3116,158.44,158.37,32.23496669]
[1724637513560,1.57809549,158.43,158.37,32.23496669]
[1724637516249,6.3119,158.43,158.37,32.23496669]
[1724637517294,6.3115,158.44,158.37,32.23496669]
[1724637517593,7.88969338,158.44,158.37,32.23496669]
[1724637518291,6.3115,158.44,158.37,32.23496669]
[1724637518486,6.3115,158.44,158.38,1.26246581]
[1724637518879,12.4298,158.45,158.39,12.23496669]
[1724637520467,6.1187,158.45,158.39,12.23496669]
[1724637520792,6.1187,158.45,158.4,1.26231508]
[1724637520968,6.1187,158.45,158.39,12.23496669]
[1724637521363,12.89287775,158.47,158.39,12.23496669]
[1724637521586,6.58247775,158.47,158.43,12.23496669]
[1724637521787,12.6925,158.49,158.43,12.23496669]
[1724637522098,12.6925,158.49,158.4,45.0]
[1724637522099,7.88762244,158.48,158.4,45.0]
[1724637522285,6.3104,158.47,158.41,32.23496669]
[1724637522664,1.57772244,158.48,158.41,32.23496669]
[1724637523503,7.88782244,158.48,158.41,32.23496669]
[1724637523789,6.3107,158.47,158.41,32.23496669]
[1724637529877,6.31,158.48,158.42,1.2622098]
[1724637530292,6.31,158.48,158.41,32.23496669]
[1724637530892,7.88805436,158.48,158.41,20.0]
[1724637531099,6.3103,158.47,158.41,32.23496669]
[1724637531489,1.57775437,158.46,158.41,32.23496669]
[1724637531698,1.57775437,158.46,158.41,20.0]
[1724637531901,1.57775437,158.46,158.4,12.23496669]
[1724637532106,1.57775437,158.46,158.41,20.0]
[1724637533397,1.57788229,158.46,158.41,20.0]
[1724637533601,6.383,158.49,158.41,20.0]
[1724637533602,1.57786576,158.45,158.41,20.0]
[1724637533908,1.57786576,158.45,158.37,32.23496669]
[1724637534204,7.88906576,158.45,158.37,32.23496669]
[1724637534707,1.57804364,158.44,158.37,32.23496669]
[1724637535083,1.57804364,158.44,158.38,45.0]
[1724637535282,1.57804364,158.44,158.39,20.0]
[1724637535613,7.88954364,158.44,158.39,20.0]
[1724637535794,1.57814308,158.43,158.39,20.0]
[1724637536099,7.89004308,158.43,158.36,27.26306669]
[1724637536306,1.57823729,158.42,158.36,15.0281]
[1724637537181,1.57823729,158.42,158.37,20.0]
[1724637538578,7.89093729,158.42,158.34,12.23496669]
[1724637538798,11.79872918,158.41,158.35,20.0]
[1724637539017,5.48562918,158.4,158.34,12.23496669]
[1724637539178,5.48562918,158.39,158.35,20.0]
[1724637539375,6.3131,158.41,158.35,20.0]
[1724637539376,5.48562918,158.38,158.35,20.0]
[1724637539578,5.48562918,158.37,158.35,20.0]
[1724637539807,5.48562918,158.36,158.35,20.0]
[1724637540710,7.8903981,158.43,158.35,65.0]
[1724637540897,5.4855565,158.42,158.35,65.0]
[1724637541093,6.3119,158.43,158.36,12.23496669]
[1724637541482,6.3119,158.43,158.37,1.2626188]
[1724637542103,7.8921777,158.44,158.38,12.23496669]
[1724637542310,5.48661586,158.42,158.38,12.23496669]
[1724637543415,13.37706057,158.42,158.35,65.0]
[1724637544987,5.48235538,158.41,158.35,65.0]
[1724637545187,5.48235538,158.4,158.35,65.0]
[1724637545389,5.48235538,158.39,158.35,65.0]
[1724637545909,5.48235538,158.39,158.35,77.23496669]
[1724637546494,5.48235538,158.39,158.36,1.26265662]
[1724637546818,5.48235538,158.38,158.36,1.26265662]
[1724637547119,6.3123,158.42,158.36,1.26265662]
[1724637547322,5.48230155,158.41,158.35,65.0]
[1724637547493,5.48230155,158.4,158.35,77.23496669]
[1724637547694,5.48230155,158.39,158.35,77.23496669]
[1724637547915,5.48230155,158.38,158.35,77.23496669]
[1724637548207,6.3123,158.42,158.35,77.23496669]
[1724637548584,5.4818679,158.41,158.35,77.23496669]
[1724637548786,5.4818679,158.4,158.35,77.23496669]
[1724637548981,5.4818679,158.39,158.35,77.23496669]
[1724637549210,5.4818679,158.38,158.35,77.23496669]
[1724637549592,5.4818679,158.37,158.35,77.23496669]
[1724637549893,6.3119,158.43,158.35,77.23496669]
[1724637550090,5.48145811,158.42,158.35,77.23496669]
[1724637551326,5.48143758,158.41,158.35,77.23496669]
[1724637551499,5.48143758,158.4,158.35,77.23496669]
[1724637551693,5.48143758,158.39,158.35,77.23496669]
[1724637551897,5.48143758,158.38,158.35,77.23496669]
[1724637552217,5.48143758,158.37,158.35,77.23496669]
[1724637552515,6.3124,158.42,158.35,77.23496669]
[1724637552710,5.48230103,158.41,158.35,77.23496669]
[1724637553028,5.48230103,158.4,158.35,77.23496669]
[1724637553217,5.48230103,158.39,158.35,77.23496669]
[1724637553514,5.48230103,158.38,158.35,77.23496669]
[1724637553718,5.48230103,158.37,158.35,77.23496669]
[1724637553895,12.6258,158.44,158.35,77.23496669]
[1724637554098,13.37216302,158.43,158.37,12.23496669]
[1724637554326,5.48202993,158.42,158.37,12.23496669]
[1724637554526,5.48202993,158.41,158.37,12.23496669]
[1724637554838,5.48197099,158.4,158.37,12.23496669]
[1724637555513,5.48197099,158.39,158.37,12.23496669]
[1724637555713,5.48197099,158.38,158.37,12.23496669]
[1724637557614,7.89025146,158.43,158.37,12.23496669]
[1724637558518,6.312,158.43,158.37,12.23496669]
[1724637559036,7.89017555,158.43,158.37,12.23496669]
[1724637562841,7.89017555,158.43,158.36,15.9247]
[1724637563022,7.89046524,158.42,158.36,15.9247]
[1724637563425,6.3129,158.41,158.36,15.9247]
[1724637563628,1.57843981,158.4,158.35,20.0]
[1724637563826,1.57843981,158.4,158.33,20.0]
[1724637564422,7.89153981,158.4,158.33,20.0]
[1724637564624,6.3131,158.4,158.33,20.0]
[1724637565145,12.23496669,158.42,158.32,27.48016669]
[1724637565146,6.314,158.38,158.32,27.48016669]
[1724637566138,7.89211358,158.39,158.32,27.48016669]
[1724637566723,6.3136,158.39,158.32,27.48016669]
[1724637574158,6.3136,158.39,158.33,1.26286498]
[1724637574366,6.3136,158.39,158.32,27.48016669]
[1724637574729,6.3136,158.39,158.3,47.37839545]
[1724637574730,6.3151,158.35,158.3,47.37839545]
[1724637574943,6.315,158.36,158.3,47.37839545]
[1724637575279,1.57899735,158.35,158.3,47.37839545]
[1724637575735,8.14793914,158.37,158.3,47.37839545]
[1724637575936,14.46253914,158.37,158.3,47.37839545]
[1724637576570,6.3149,158.36,158.3,47.37839545]
[1724637577463,12.8834,158.37,158.3,47.37839545]
[1724637584985,12.8834,158.37,158.31,12.23496669]
[1724637584986,6.3144,158.37,158.31,12.23496669]
[1724637585786,6.3139,158.38,158.31,12.23496669]
[1724637586172,13.1643969,158.41,158.35,12.23496669]
[1724637586480,15.7788,158.45,158.34,16.3627]
[1724637586481,1.57833844,158.44,158.37,12.23496669]
[1724637586661,8.180049,158.44,158.37,12.23496669]
[1724637587192,14.491549,158.44,158.37,12.23496669]
[1724637588065,6.3128,158.41,158.34,22.8112]
[1724637588265,6.3128,158.41,158.35,20.0]
[1724637588266,7.89131375,158.41,158.35,20.0]
[1724637589257,6.3128,158.41,158.35,20.0]
[1724637590269,7.89081484,158.43,158.35,20.0]
[1724637590470,7.89066494,158.43,158.35,20.0]
[1724637590765,7.89066494,158.43,158.36,12.23496669]
[1724637591085,6.3123,158.43,158.36,12.23496669]
[1724637593099,12.91321056,158.44,158.36,12.23496669]
[1724637593599,1.57813531,158.43,158.36,12.23496669]
[1724637593776,6.3124,158.42,158.35,12.23496669]
[1724637594095,1.57826293,158.41,158.35,12.23496669]
[1724637594670,6.3131,158.4,158.34,16.3627]
[1724637594872,1.57848505,158.42,158.34,16.3627]
[1724637596393,6.3127,158.41,158.34,16.3627]
[1724637596599,1.57848635,158.4,158.34,16.3627]
[1724637600405,7.89158635,158.4,158.34,16.3627]
[1724637600706,1.57848789,158.39,158.34,16.3627]
[1724637600872,20.41750537,158.39,158.3,63.94509545]
[1724637601075,6.3147,158.36,158.3,63.94509545]
[1724637601399,6.3143,158.37,158.3,63.94509545]
[1724637601582,1.5789081,158.36,158.3,63.94509545]
[1724637602799,1.57890594,158.38,158.3,63.94509545]
[1724637603007,6.3147,158.37,158.3,63.94509545]
[1724637603309,18.55006669,158.35,158.3,47.37839545]
[1724637603613,6.3151,158.35,158.3,47.37839545]
[1724637603902,1.57911566,158.34,158.3,47.37839545]
[1724637604603,13.81408235,158.34,158.3,47.37839545]
[1724637604901,6.316,158.33,158.3,47.37839545]
[1724637605100,1.57930048,158.32,158.3,47.37839545]
[1724637605875,6.3154,158.35,158.3,47.37839545]
[1724637606119,12.23496669,158.37,158.3,47.37839545]
[1724637606412,21.57911348,158.36,158.3,47.37839545]
[1724637606618,1.57911334,158.37,158.3,47.37839545]
[1724637606776,28.74652617,158.39,158.32,28.16096669]
[1724637607278,28.74652617,158.39,158.34,12.23496669]
[1724637607279,22.14247538,158.39,158.34,12.23496669]
[1724637607888,1.57849688,158.38,158.32,28.16096669]
[1724637608090,22.14247538,158.39,158.33,20.0]
[1724637608601,28.45607538,158.39,158.32,28.16096669]
[1724637608791,6.3136,158.39,158.32,28.16096669]
[1724637608990,7.89167735,158.41,158.32,28.16096669]
[1724637609306,6.3136,158.39,158.32,28.16096669]
[1724637610492,7.89167735,158.41,158.32,28.16096669]
[1724637611904,12.23496669,158.4,158.32,15.926]
[1724637612110,1.57879511,158.39,158.32,15.926]
[1724637613009,6.3139,158.38,158.32,15.926]
[1724637613195,1.57889746,158.37,158.32,15.926]
[1724637614701,7.89281389,158.38,158.32,15.926]
[1724637616410,6.3143,158.37,158.32,15.926]
[1724637616584,1.57891761,158.36,158.32,15.926]
[1724637617324,12.99382175,158.44,158.32,28.16096669]
[1724637617325,1.57891761,158.39,158.32,28.16096669]
[1724637617616,6.3136,158.39,158.32,28.16096669]
[1724637617786,7.89279737,158.38,158.32,15.926]
[1724637618209,6.3143,158.37,158.32,15.926]
[1724637618414,1.57889477,158.36,158.32,15.926]
[1724637619105,6.3143,158.37,158.32,15.926]
[1724637619416,6.3139,158.38,158.32,15.926]
[1724637619596,1.57889453,158.39,158.32,15.926]
[1724637619807,20.0,158.39,158.32,28.16096669]
[1724637620388,21.57852691,158.39,158.32,28.16096669]
[1724637620830,1.57852425,158.42,158.34,12.23496669]
[1724637621115,12.91545383,158.43,158.36,12.23496669]
[1724637621299,7.8908444,158.42,158.36,12.23496669]
[1724637622234,7.8908444,158.42,158.33,30.65385567]
[1724637622609,1.5784444,158.42,158.33,30.65385567]
[1724637622922,21.5784444,158.42,158.33,30.65385567]
[1724637623304,27.8907444,158.42,158.33,30.65385567]
[1724637623925,26.3123,158.42,158.33,30.65385567]
[1724637624812,1.57838301,158.41,158.33,30.65385567]
[1724637625731,6.3119,158.43,158.35,30.65385567]
[1724637626101,6.3115,158.44,158.37,52.66475567]
[1724637626409,6.3115,158.44,158.38,1.26248155]
[1724637626729,254.5,158.49,158.42,15.4601]
[1724637626927,7.88813544,158.48,158.42,15.4601]
[1724637627928,6.3103,158.47,158.42,15.4601]
[1724637628607,6.59981956,158.51,158.43,1.26226591]
[1724637628807,6.3095,158.5,158.43,1.26226591]
[1724637629128,7.8874128,158.49,158.42,15.4601]
[1724637630237,6.3097,158.49,158.42,15.4601]
[1724637630844,6.3097,158.49,158.43,1.26216315]
[1724637631135,6.3097,158.49,158.42,15.4601]
[1724637631341,6.3097,158.49,158.43,1.26210706]
[1724637631923,22.37021452,158.53,158.42,15.4601]
[1724637631924,6.3093,158.5,158.42,15.4601]
[1724637632122,21.57751464,158.49,158.42,15.4601]
[1724637632829,6.3104,158.47,158.42,15.4601]
[1724637633438,1.57791231,158.46,158.42,15.4601]
[1724637633748,7.88881231,158.46,158.42,15.4601]
[1724637633913,1.57799718,158.45,158.42,15.4601]
[1724637634646,6.3109,158.46,158.42,15.4601]
[1724637636716,20.0,158.49,158.42,15.4601]
[1724637637034,6.3095,158.5,158.43,6.0363]
[1724637637229,21.57756207,158.49,158.43,6.0363]
[1724637638156,27.88706207,158.49,158.43,6.0363]
[1724637638320,6.3088,158.51,158.43,6.0363]
[1724637638843,6.3088,158.51,158.44,1.26194752]